{"text_format":"1","workbook":"xlsx","n_sheets":2,"sheets":["Лист1","Лист4"],"not_rendered":{"charts":0,"images":0,"macros":1,"external_links":0,"defined_names":0,"comments":0,"pivot_tables":0},"unopened":[],"bounds":{"document_bytes":16777216,"sheet_cells":100000,"rows_first":2000,"rows_last":500,"rows_between":2000,"halvings":0,"cell_chars":16384,"cell_head_chars":4096},"cells_cut":0,"cells_raw":0,"read":"whole","date_system":"1900"}

{"sheet":"Лист1","index":0,"n_rows":99,"n_cols":13,"rows_kept":99,"cut":false,"hidden":false,"merged":[[70,2,70,5],[70,8,70,11],[98,1,98,5],[2,1,3,1],[2,2,2,5],[2,7,3,7],[2,8,2,11],[2,12,3,12],[7,2,7,4],[7,8,7,10],[97,2,97,5],[82,2,82,5],[83,2,83,5],[79,2,79,5],[65,2,65,5],[52,2,52,5],[53,2,53,5],[54,2,54,5],[55,2,55,5],[56,2,56,5],[74,2,74,5],[68,2,68,5],[60,2,60,5],[76,2,76,5],[63,1,64,5],[72,1,73,5],[71,2,71,5],[76,8,76,11],[88,2,88,5],[89,2,89,5],[87,2,87,5],[92,2,92,5],[96,1,96,5],[90,1,91,5],[67,8,67,11],[68,8,68,11],[63,7,64,10],[65,8,65,12],[66,8,66,11],[5,2,5,5],[6,2,6,4],[66,2,66,5],[67,2,67,5],[31,2,31,5],[20,2,20,5],[34,2,34,5],[10,2,10,5],[18,1,19,5],[50,1,51,5],[8,1,9,5],[57,2,57,5],[58,2,58,5],[59,2,59,5],[62,2,62,5],[61,2,61,5],[5,8,5,12],[6,8,6,10],[10,8,10,12],[8,7,9,10],[18,7,19,10],[52,8,52,12],[53,8,53,11],[54,8,54,11],[55,8,55,11],[56,8,56,11],[57,8,57,11],[58,8,58,11],[59,8,59,11],[60,8,60,11],[62,8,62,11],[61,8,61,11],[82,8,82,11],[72,7,73,10],[77,7,78,10],[92,8,92,12],[98,8,98,11],[83,8,83,11],[88,8,88,11],[89,8,89,11],[87,8,87,12],[96,7,97,10],[90,7,91,10],[71,8,71,11],[97,11,97,12],[20,8,20,12],[29,8,29,12],[77,1,78,5],[85,7,86,10],[85,1,86,5],[32,7,33,10],[27,1,28,5],[32,1,33,5],[44,1,45,5],[44,7,45,10],[31,8,31,11],[34,8,34,12],[74,8,74,12],[79,8,79,12]]}
[null,"Таблица расценок",null,null,null,null,null,"Таблица для расчета стоимости работ"]
[]
[null,"Работы","Цена, руб",null,null,null,null,"Работы","Количество, шт/м",null,null,null,"Цена, руб"]
[null,null,"бетон","кирпич","гипс","дерево",null,null,"бетон","кирпич","гипс","дерево"]
[]
[null,"Монтаж скрытой электропроводки",null,null,null,null,null,"Монтаж скрытой электропроводки"]
[null,"Установка эл точки в подрозетник ",250,null,null,"#",null,"Установка эл точки в подрозетник ",null,null,null,"#",{"$f":"I7*C7","v":0}]
[null,"Подключение эл точки",200,null,null,"#",null,"Подключение эл точки",null,null,null,"#",{"$f":"I8*C8","v":0}]
[null,null,null,null,null,null,null,null,null,null,null,"Итого:",{"$f":"SUM(M7:M8)","v":0}]
[]
[null,"Штробление",null,null,null,null,null,"Штробление"]
[null,"под подрозетник",200,150,100,"#",null,"под подрозетник",null,null,null,"#",{"$f":"C12*I12+D12*J12+E12*K12","v":0}]
[null,"под проводку до 20х20 мм, м",80,80,"#","#",null,"под проводку до 20х20 мм, м",null,null,"#","#",{"$f":"C13*I13+D13*J13","v":0}]
[null,"под проводку до 40х40 мм, м",100,100,"#","#",null,"под проводку до 40х40 мм, м",null,null,"#","#",0]
[null,"Установка врезного щита  на 12 модулей",1000,1000,700,"#",null,"Установка врезного щита  на 12 модулей",null,null,null,"#",0]
[null,"Установка врезного щита  на 24 модулей",1400,1400,900,"#",null,"Установка врезного щита  на 24 модулей",null,null,null,"#",0]
[null,"Установка врезного щита  на 36 модулей",1900,1900,1100,"#",null,"Установка врезного щита  на 36 модулей",null,null,null,"#",0]
[null,"Установка врезного щита  на 54 модуля",2400,2400,1300,"#",null,"Установка врезного щита  на 54 модуля",null,null,null,"#",0]
[null,null,null,null,null,null,null,null,null,null,null,"Итого:",{"$f":"SUM(M12:M18)","v":0}]
[]
[null,"Укладка кабеля в штробу",null,null,null,null,null,"Укладка кабеля в штробу"]
[null,"3жильного до 4мм², м",30,30,"#","#",null,"3жильного до 4мм², м",null,null,"#","#",{"$f":"C22*I22+D22*J22","v":0}]
[null,"3жильного до 10мм², м",45,45,"#","#",null,"3жильного до 10мм², м",null,null,"#","#",{"$f":"C23*I23+D23*J23","v":0}]
[null,"в  гофре 3жильного до 4мм², м",50,50,"#","#",null,"в  гофре 3жильного до 4мм², м",null,null,"#","#",0]
[null,"в  гофре 3жильного до 10мм², м",60,60,"#","#",null,"в  гофре 3жильного до 10мм², м",null,null,"#","#",0]
[null,"в металл-рукаве 3жильного до 4мм², м",50,50,"#","#",null,"в металл-рукаве 3жильного до 4мм², м",null,null,"#","#",0]
[null,"в металл-рукаве 3жильного до 10мм², м",60,60,"#","#",null,"в металл-рукаве 3жильного до 10мм², м",null,null,"#","#",0]
[null,null,null,null,null,null,null,null,null,null,null,"Итого:",{"$f":"SUM(M22:M27)","v":0}]
[]
[null,"Монтаж открытой электропроводки",null,null,null,null,null,"Монтаж открытой электропроводки"]
[null,"Установка эл точки",250,250,200,150,null,"Установка эл точки",null,null,null,null,{"$f":"C31*I31+D31*J31+E31*K31+F31*L31","v":0}]
[null,"Подключение эл точки",200,null,null,null,null,"Подключение эл точки",null,null,null,null,{"$f":"I32*C32","v":0}]
[null,null,null,null,null,null,null,null,null,null,null,"Итого:",{"$f":"SUM(M31:M32)","v":0}]
[]
[null,"Прокладка кабеля",null,null,null,null,null,"Прокладка кабеля"]
[null,"открыто до 10мм², м",25,25,10,10,null,"открыто до 10мм², м",null,null,null,null,{"$f":"C36*I36+D36*J36+E36*K36+F36*L36","v":0}]
[null,"гофра диаметр до 20мм, м",40,40,35,30,null,"гофра диаметр до 20мм, м",null,null,null,null,0]
[null,"гофра диаметр до 32 мм, м",45,45,40,35,null,"гофра диаметр до 32 мм, м",null,null,null,null,0]
[null,"труба ПВХ  диаметр до 20мм, м",45,45,40,35,null,"труба ПВХ  диаметр до 20мм, м",null,null,null,null,0]
[null,"труба ПВХ  диаметр до 32мм, м",50,50,45,40,null,"труба ПВХ  диаметр до 32мм, м",null,null,null,null,0]
[null,"кабель-канал ширина до 40мм, м",40,40,35,30,null,"кабель-канал ширина до 40мм, м",null,null,null,null,0]
[null,"кабель-канал ширина до 100мм, м",45,45,40,35,null,"кабель-канал ширина до 100мм, м",null,null,null,null,0]
[null,"металлорукав диаметр до 20мм, м",50,50,45,40,null,"металлорукав диаметр до 20мм, м",null,null,null,null,0]
[null,"металлорукав диаметр до 32мм, м",55,55,50,45,null,"металлорукав диаметр до 32мм, м",null,null,null,null,0]
[null,null,null,null,null,null,null,null,null,null,null,"Итого:",{"$f":"SUM(M36:M44)","v":0}]
[]
[null,"Установка накладного щита  на 12 модулей",650,600,550,500,null,"Установка накладного щита  на 12 модулей",null,null,null,null,{"$f":"C47*I47+D47*J47+E47*K47+F47*L47","v":0}]
[null,"Установка накладного щита  на 24 модулей",700,650,600,550,null,"Установка накладного щита  на 24 модулей",null,null,null,null,{"$f":"C48*I48+D48*J48+E48*K48+F48*L48","v":0}]
[null,"Установка накладного щита  на 36 модулей",750,700,650,600,null,"Установка накладного щита  на 36 модулей",null,null,null,null,{"$f":"C49*I49+D49*J49+E49*K49+F49*L49","v":0}]
[null,"Установка накладного щита  на 54 модуля",800,750,700,650,null,"Установка накладного щита  на 54 модуля",null,null,null,null,{"$f":"C50*I50+D50*J50+E50*K50+F50*L50","v":0}]
[null,null,null,null,null,null,null,null,null,null,null,"Итого:",{"$f":"SUM(M47:M50)","v":0}]
[]
[null,"Щиток электрический",null,null,null,null,null,"Щиток электрический"]
[null,"Монтаж счетчика 380в",1900,null,null,null,null,"Монтаж счетчика 380в",null,null,null,null,{"$f":"C54*I54","v":0}]
[null,"Монтаж счетчика 220в",1400,null,null,null,null,"Монтаж счетчика 220в",null,null,null,null,0]
[null,"Монтаж автомата 1п",250,null,null,null,null,"Монтаж автомата 1п",null,null,null,null,0]
[null,"Монтаж автомата 2п",300,null,null,null,null,"Монтаж автомата 2п",null,null,null,null,0]
[null,"Монтаж автомата 3п",350,null,null,null,null,"Монтаж автомата 3п",null,null,null,null,0]
[null,"Монтаж автомата 4п",400,null,null,null,null,"Монтаж автомата 4п",null,null,null,null,0]
[null,"Крепление дин рейки",50,null,null,null,null,"Крепление дин рейки",null,null,null,null,0]
[null,"Монтаж шины N, PE",150,null,null,null,null,"Монтаж шины N, PE",null,null,null,null,0]
[null,"Подключение выводов к клемме",50,null,null,null,null,"Подключение выводов к клемме",null,null,null,null,0]
[null,"Сверление отверсия, шт",50,null,null,null,null,"Сверление отверсия, шт",null,null,null,null,0]
[null,null,null,null,null,null,null,null,null,null,null,"Итого:",{"$f":"SUM(M55:M63)","v":0}]
[]
[null,"Монтаж воздушной линии",null,null,null,null,null,"Монтаж воздушной линии"]
[null,"Прокладка кабеля на тросе, м",500,null,null,null,null,"Подключение к клемам, шт",null,null,null,null,{"$f":"C67*I67","v":0}]
[null,"Прокладка кабеля СИП, м",500,null,null,null,null,"Установка сжима на ввод, шт",null,null,null,null,{"$f":"C68*I68","v":0}]
[null,"Подвес на тросе, м",100,null,null,null,null,"Подвес на тросе, м",null,null,null,null,{"$f":"C69*I69","v":0}]
[null,"Крепление крючка\\кольца, шт",100,100,100,50,null,"Крепление крючка\\кольца, шт",null,null,null,null,{"$f":"C70*I70+D70*J70+E70*K70+F70*L70","v":0}]
[null,"Монтаж зажим-прокола, шт",100,null,null,null,null,"Монтаж зажим-прокола, шт",null,null,null,null,{"$f":"I71*C71","v":0}]
[null,"Крепление талреп, шт",100,null,null,null,null,"Крепление талреп, шт",null,null,null,null,{"$f":"C72*I72","v":0}]
[null,null,null,null,null,null,null,null,null,null,null,"Итого:",{"$f":"SUM(M67:M72)","v":0}]
[]
[null,"Монтаж светильника",null,null,null,null,null,"Монтаж светильника"]
[null,"Установка светильника",250,250,250,200,null,"Установка светильника",null,null,null,null,{"$f":"C76*I76+D76*J76+E76*K76+F76*L76","v":0}]
[null,"Подключение",200,null,null,null,null,"Подключение",null,null,null,null,{"$f":"I77*C77","v":0}]
[null,null,null,null,null,null,null,null,null,null,null,"Итого:",{"$f":"SUM(M76:M77)","v":0}]
[]
[null,"Демонтажные работы",null,null,null,null,null,"Демонтажные работы"]
[null,"Эл точка",100,100,100,90,null,"Эл точка",null,null,null,null,{"$f":"C81*I81+D81*J81+E81*K81+F81*L81","v":0}]
[null,"Кабель, м",35,35,35,20,null,"Кабель, м",null,null,null,"#",{"$f":"C82*I82+D82*J82","v":0}]
[null,"Автомат",200,null,null,null,null,"Автомат",null,null,null,null,{"$f":"C83*I83","v":0}]
[null,"Шкаф электрический",500,null,null,null,null,"Шкаф электрический",null,null,null,null,{"$f":"I84*C84","v":0}]
[null,"Светильник",200,200,200,100,null,"Светильник",null,null,null,null,{"$f":"C85*I85+D85*J85+E85*K85+F85*L85","v":0}]
[null,null,null,null,null,null,null,null,null,null,null,"Итого:",{"$f":"SUM(M81:M85)","v":0}]
[]
[null,"TV,  Ethernet",null,null,null,null,null,"TV,  Ethernet"]
[null,"Установка TV краба, шт",200,null,null,null,null,"Установка TV краба, шт",null,null,null,null,{"$f":"C89*I89","v":0}]
[null,"Установка разъема на кабель, шт",100,null,null,null,null,"Установка разъема на кабель, шт",null,null,null,null,{"$f":"C90*I90","v":0}]
[null,null,null,null,null,null,null,null,null,null,null,"Итого:",{"$f":"SUM(M82:M90)","v":0}]
[]
[null,"Прочие работы",null,null,null,null,null,"Прочие работы"]
[null,"Сквозное отверстие до 16мм²",250,250,100,100,null,"Сквозное отверстие до 16мм²",null,null,null,null,{"$f":"C94*I94+D94*J94+F94*L94","v":0}]
[null,"Сквозное отверстие до 25мм²",300,300,150,150,null,"Сквозное отверстие до 25мм²",null,null,null,null,{"$f":"C95*I95+D95*J95+F95*L95","v":0}]
[null,"Сквозное отверстие до 32мм²",350,350,200,200,null,"Сквозное отверстие до 32мм²",null,null,null,null,{"$f":"C96*I96+D96*J96+F96*L96","v":0}]
[null,null,null,null,null,null,null,null,null,null,null,"Итого:",{"$f":"SUM(M88:M96)","v":0}]
[null,"Работа на высоте 3м<0<5м, % от работ",10]
[null,null,null,null,null,null,null,"ИТОГО",null,null,null,null,{"$f":"SUM(M7:M8,M12:M18,M22:M27,M31:M32,M36:M44,M47:M50,M54:M63,M67:M72,M76:M77,M81:M85,M89:M90,M94:M96)","v":0}]

{"sheet":"Лист4","index":1,"n_rows":0,"n_cols":0,"rows_kept":0,"cut":false,"hidden":true,"merged":[]}